bitfinex-derivatives/quotes_ETHF0:USTF0_20250326
["timestamp","ask_amount","ask_price","bid_price","bid_amount"]
[1743002702110,0.00744343,2015.5,2015.1,1.40834343]
[1743002707401,3.2078,2015.2,2015.1,1.40834343]
[1743002707601,3.2078,2015.2,2014.4,0.08636639]
[1743002707802,3.2078,2014.6,2014.4,0.36981579]
[1743002708008,1.3764,2014.5,2014.2,1.4254]
[1743002708313,3.2078,2014.3,2014.2,1.4254]
[1743002708914,3.2078,2014.3,2014.1,0.6845]
[1743002709100,1.3417,2014.2,2014.1,1.9925]
[1743002709301,1.3417,2014.2,2014.0,0.00744343]
[1743002712618,1.3417,2014.2,2013.6,50.027]
[1743002712619,3.8417,2014.2,2013.6,50.027]
[1743002712817,3.2078,2013.8,2013.6,50.027]
[1743002713016,1.3065,2013.7,2013.6,50.027]
[1743002714311,3.2078,2013.8,2013.6,50.027]
[1743002714523,3.2078,2013.8,2013.7,1.373]
[1743002715019,3.2078,2013.8,2013.4,0.00744343]
[1743002715215,1.303,2013.7,2013.4,1.42054343]
[1743002715421,1.303,2013.7,2013.5,40.8]
[1743002715616,1.303,2013.7,2013.6,1.4131]
[1743002716320,3.2078,2013.8,2013.6,1.4131]
[1743002717014,3.2078,2013.8,2013.7,40.8]
[1743002718315,4.1981,2014.4,2013.7,44.321]
[1743002718515,3.2078,2014.1,2013.8,1.4292]
[1743002719617,3.2078,2014.1,2013.7,40.8]
[1743002719816,3.2078,2013.8,2013.7,40.8]
[1743002720023,3.2078,2013.8,2013.5,4.9502]
[1743002721111,3.2078,2013.8,2013.4,40.80744343]
[1743002721416,3.2078,2013.5,2013.4,0.00744343]
[1743002724219,5.7078,2013.5,2013.0,90.838]
[1743002724521,5.7078,2013.5,2013.0,40.8]
[1743002724522,3.2078,2013.2,2013.0,40.8]
[1743002724926,6.7298,2013.2,2012.7,0.40504285]
[1743002725113,6.7298,2013.2,2012.5,0.6475]
[1743002725114,3.2078,2012.8,2012.6,1.3637]
[1743002725316,3.2078,2012.8,2012.7,0.00744343]
[1743002726723,3.9176,2012.8,2012.7,0.00744343]
[1743002727025,6.4176,2012.8,2011.9,0.40488352]
[1743002727229,3.2078,2012.4,2012.1,1.3599]
[1743002728322,3.2078,2012.4,2012.0,0.00744343]
[1743002728625,3.2078,2012.4,2012.1,40.8]
[1743002728930,3.8961,2012.4,2012.0,0.00744343]
[1743002729125,3.2078,2012.1,2012.0,0.00744343]
[1743002730627,3.2078,2012.1,2012.0,3.52944343]
[1743002731028,0.6883,2012.4,2012.0,3.52944343]
[1743002731029,3.2078,2012.4,2012.0,3.52944343]
[1743002731228,3.2078,2012.4,2012.0,4.91314343]
[1743002734431,1.4023,2012.3,2012.0,4.91314343]
[1743002734826,3.2078,2012.4,2012.0,4.91314343]
[1743002739734,3.2078,2012.4,2012.0,1.39114343]
[1743002739936,1.397,2012.3,2012.1,3.523]
[1743002740131,1.397,2012.3,2012.2,1.4043]
[1743002741736,3.2078,2012.4,2012.2,1.4043]
[1743002741940,1.397,2012.7,2012.2,1.4043]
[1743002742330,3.2078,2012.5,2012.2,1.4043]
[1743002744934,1.3868,2012.4,2012.2,1.4043]
[1743002747039,3.9176,2012.8,2012.2,51.5013]
[1743002747241,3.2078,2012.8,2012.4,3.2078]
[1743002747446,3.2078,2012.8,2012.5,5.5237]
[1743002747942,1.3995,2013.0,2012.7,3.2078]
[1743002748157,3.2078,2013.1,2012.8,5.5579]
[1743002748350,1.3807,2013.0,2012.5,0.662]
[1743002748541,1.3807,2013.0,2012.6,46.3579]
[1743002748741,1.3807,2013.0,2012.7,1.373]
[1743002750656,1.3807,2013.0,2012.4,3.522]
[1743002750657,3.2078,2012.8,2012.4,3.522]
[1743002750851,2.0619,2012.7,2012.4,3.522]
[1743002751447,1.3807,2012.7,2012.4,3.522]
[1743002751653,1.3807,2012.7,2012.5,1.2966]
[1743002751851,1.3807,2012.7,2012.5,1.9474]
[1743002752150,3.2078,2012.8,2012.5,1.9474]
[1743002752749,1.3013,2012.7,2012.5,1.9474]
[1743002752948,3.2078,2012.8,2012.5,1.9474]
[1743002754342,1.3013,2013.0,2012.7,3.2078]
[1743002754547,1.3013,2013.0,2012.8,5.5914]
[1743002755057,1.3013,2013.0,2012.8,4.1756]
[1743002755448,1.3013,2013.0,2012.9,1.4158]
[1743002759459,1.3013,2013.0,2012.8,4.1756]
[1743002759958,1.3013,2013.0,2012.9,1.3233]
[1743002760462,1.3013,2013.0,2012.8,4.1756]
[1743002760658,3.2078,2012.9,2012.8,3.521]
[1743002761251,4.614,2012.9,2012.8,3.521]
[1743002762453,4.614,2012.9,2012.6,1.3685]
[1743002762658,4.614,2012.9,2012.2,50.097]
[1743002762869,3.2078,2012.6,2012.3,4.8885]
[1743002763158,2.0582,2012.5,2012.3,4.8885]
[1743002763355,2.0582,2012.5,2012.4,1.3685]
[1743002763557,1.4062,2012.5,2012.4,1.3685]
[1743002764063,3.2078,2012.9,2012.4,1.3685]
[1743002764365,4.64,2012.9,2012.4,1.3685]
[1743002764556,4.64,2012.9,2012.5,0.6526]
[1743002764753,4.64,2012.9,2012.6,5.537]
[1743002765061,4.64,2012.9,2012.7,1.3004]
[1743002768164,3.2078,2012.9,2012.7,1.3004]
[1743002768352,4.5138,2012.9,2012.7,1.3004]
[1743002768556,4.5138,2012.9,2012.6,3.52]
[1743002768755,4.5138,2012.9,2012.3,2.0811]
[1743002768955,4.5138,2012.9,2012.3,5.6011]
[1743002768956,3.2078,2012.6,2012.3,5.6011]
[1743002769157,1.306,2012.5,2012.4,1.379]
[1743002769866,2.69,2012.5,2012.3,3.519]
[1743002770068,2.69,2012.5,2012.3,4.938]
[1743002770367,2.69,2012.5,2012.3,45.738]
[1743002770971,2.69,2012.5,2012.4,1.419]
[1743002771160,2.69,2012.5,2012.4,3.519]
[1743002771468,2.69,2012.5,2012.3,3.519]
[1743002771857,2.69,2012.5,2012.3,44.319]
[1743002772873,2.69,2012.5,2012.3,40.8]
[1743002773162,2.69,2012.5,2012.2,50.097]
[1743002773364,3.2078,2012.3,2012.2,50.097]
[1743002775171,3.2078,2012.3,2012.2,51.4616]
[1743002776167,3.2078,2012.3,2012.2,52.1655]
[1743002779375,1.306,2012.5,2012.2,52.1655]
[1743002779668,1.306,2012.5,2012.3,0.6712]
[1743002779873,1.306,2012.5,2012.4,4.9235]
[1743002780070,3.2078,2012.7,2012.4,4.9235]
[1743002780568,1.3256,2012.6,2012.4,1.4045]
[1743002780775,1.3256,2012.6,2012.3,1.4045]
[1743002780971,0.6625,2012.5,2012.3,1.4045]
[1743002781272,1.3256,2012.4,2012.3,1.4045]
[1743002781978,1.3256,2012.4,2012.2,54.3199]
[1743002782171,2.0005,2012.4,2012.2,54.3199]
[1743002782475,2.0005,2012.4,2012.1,4.8692]
[1743002782476,5.2083,2012.4,2012.1,4.8692]
[1743002783179,5.2083,2012.4,2012.1,1.3502]
[1743002783473,5.2083,2012.4,2012.0,40.80744343]
[1743002783672,5.2083,2012.4,2012.0,42.15764343]
[1743002784578,4.5334,2012.4,2012.1,3.519]
[1743002784776,1.3256,2012.4,2012.2,1.3058]
[1743002784978,1.3256,2012.4,2012.2,1.9609]
[1743002785667,1.3256,2012.4,2012.3,0.6924]
[1743002786479,0.6739,2012.6,2012.3,0.6924]
[1743002786668,2.0816,2012.6,2012.4,4.8248]
[1743002787173,1.4077,2012.6,2012.4,4.8248]
[1743002790577,3.2078,2012.7,2012.4,4.8248]
[1743002793274,3.2078,2012.7,2012.4,1.3058]
[1743002793474,1.392,2012.6,2012.2,0.6551]
[1743002793675,3.2078,2012.4,2012.2,3.518]
[1743002793876,1.4204,2012.3,2012.2,3.518]
[1743002794880,1.4204,2012.3,2012.2,4.8977]
[1743002795684,1.4204,2012.3,2012.1,53.616]
[1743002795884,1.4204,2012.3,2012.1,54.9957]
[1743002796084,1.4204,2012.3,2012.2,1.3797]
[1743002796284,1.4204,2012.3,2012.2,2.772]
[1743002796475,0.6691,2012.6,2012.2,2.772]
[1743002796675,3.2078,2012.8,2012.2,5.9798]
[1743002796885,1.38,2012.7,2012.2,5.9798]
[1743002798989,1.38,2012.7,2012.3,1.4262]
[1743002799191,1.38,2012.7,2012.4,3.518]
[1743002799389,1.38,2012.7,2012.5,1.4262]
[1743002802488,1.327,2012.6,2012.4,1.362]
[1743002805691,1.327,2012.6,2012.2,1.3771]
[1743002805891,3.2078,2012.3,2012.0,0.00744343]
[1743002806089,1.298,2012.2,2012.0,0.00744343]
[1743002806288,0.6826,2012.1,2012.0,0.00744343]
[1743002806590,1.3896,2012.1,2012.0,0.00744343]
[1743002810784,0.707,2012.1,2012.0,0.00744343]
[1743002815798,1.298,2012.2,2012.0,0.00744343]
[1743002815993,3.2078,2012.3,2012.1,3.517]
[1743002816197,3.2078,2012.6,2012.2,1.4337]
[1743002816385,3.2078,2012.6,2012.3,0.7113]
[1743002816591,3.2078,2012.6,2012.4,46.454]
[1743002816895,3.2078,2012.6,2012.5,1.4337]
[1743002817998,3.2078,2012.9,2012.5,1.4337]
[1743002818190,1.3237,2012.8,2012.5,1.4337]
[1743002818494,3.2078,2012.9,2012.5,1.4337]
[1743002821597,3.2078,2012.9,2012.6,3.516]
[1743002821797,1.4219,2012.8,2012.4,3.516]
[1743002822097,3.2078,2012.5,2012.4,3.516]
[1743002824105,3.2078,2012.5,2012.2,52.226]
[1743002824304,1.2985,2012.4,2012.2,52.226]
[1743002826201,1.2985,2012.4,2012.2,50.109]
[1743002826401,0.7104,2012.3,2012.2,50.109]
[1743002826702,0.7104,2012.3,2012.0,0.00744343]
[1743002827009,3.2078,2012.1,2012.0,0.00744343]
[1743002827199,3.2078,2012.1,2012.0,1.37524343]
[1743002827401,3.2078,2012.1,2012.0,0.00744343]
[1743002827700,5.7078,2012.1,2011.6,1.3678]
[1743002827900,3.2078,2011.7,2011.6,1.3678]
[1743002829107,3.2078,2011.7,2011.5,4.8828]
[1743002829307,1.3401,2011.6,2011.5,4.8828]
[1743002831312,1.3401,2011.6,2011.4,0.00496228]
[1743002831505,3.2078,2011.7,2011.5,0.6695]
[1743002831705,3.2078,2011.7,2011.6,1.3371]
[1743002834414,3.2078,2011.7,2011.4,0.38632389]
[1743002834609,3.2078,2011.7,2011.6,1.4337]
[1743002835006,3.2078,2011.7,2011.4,1.09122389]
[1743002835206,3.2078,2011.7,2011.4,0.00496228]
[1743002835915,3.2078,2011.7,2010.8,44.72001585]
[1743002835916,3.515,2011.6,2010.8,40.8]
[1743002836122,3.2078,2010.9,2010.8,40.8]
[1743002837006,3.2078,2010.9,2010.7,1.3611]
[1743002837518,3.2078,2010.9,2010.7,42.1611]
[1743002838920,3.2078,2010.9,2010.7,42.54052676]
[1743002839813,3.2078,2011.2,2010.8,3.515]
[1743002840015,3.2078,2011.2,2010.9,1.4164]
[1743002840415,3.2078,2011.2,2011.0,40.8]
[1743002841218,3.2078,2011.2,2011.0,3.515]
[1743002841520,0.7095,2011.1,2011.0,3.515]
[1743002841719,0.7095,2011.1,2010.7,3.89442676]
[1743002841919,0.7095,2011.1,2010.7,3.515]
[1743002842122,0.7095,2011.1,2010.7,4.9314]
[1743002842314,0.7095,2011.1,2010.7,5.30755449]
[1743002842916,3.2078,2010.9,2010.7,5.30755449]
[1743002843425,3.2078,2010.9,2010.7,46.10755449]
[1743002844220,3.2078,2010.9,2010.0,3.7054]
[1743002844418,3.2078,2010.9,2010.1,5.2265]
[1743002844727,0.00744343,2010.7,2010.2,3.515]
[1743002844918,0.00744343,2010.7,2010.3,1.3648]
[1743002845219,0.00744343,2010.7,2010.4,3.8543]
[1743002845421,0.00744343,2010.7,2010.5,4.8798]
[1743002846918,0.00744343,2010.7,2010.5,8.0876]
[1743002847119,0.6619,2011.0,2010.6,0.665]
[1743002847313,0.6619,2011.0,2010.7,1.3209]
[1743002847514,0.6619,2011.0,2010.7,4.5287]
[1743002847722,0.7095,2011.1,2010.8,3.515]
[1743002847921,0.7095,2011.1,2010.9,1.3209]
[1743002848114,3.2078,2011.2,2010.9,2.0101]
[1743002848321,0.00744343,2011.2,2010.9,2.0101]
[1743002848525,0.00744343,2011.2,2011.0,0.698]
[1743002848721,0.00744343,2011.2,2011.1,1.344]
[1743002849225,0.00744343,2011.2,2011.1,4.859]
[1743002850330,0.6964,2011.7,2011.1,4.859]
[1743002850532,0.6964,2011.7,2011.3,3.2078]
[1743002850726,3.2078,2011.8,2011.4,3.515]
[1743002850931,3.2078,2011.8,2011.4,6.2024]
[1743002851133,3.8547,2011.8,2011.4,6.2024]
[1743002851431,1.3849,2011.7,2011.4,4.859]
[1743002855435,3.2078,2011.5,2011.1,0.6933]
[1743002855630,1.4079,2011.4,2011.1,5.5733]
[1743002855935,2.1169,2011.4,2011.1,5.5733]
[1743002856636,2.1169,2011.4,2011.1,4.88]
[1743002856839,2.1169,2011.4,2011.2,1.366]
[1743002859038,1.3814,2011.3,2011.2,1.366]
[1743002859234,1.3814,2011.7,2011.3,3.2078]
[1743002859431,1.3814,2011.7,2011.4,5.6003]
[1743002859639,1.3814,2011.7,2011.5,42.2029]
[1743002859839,1.3814,2011.7,2011.5,1.4029]
[1743002861537,0.00744343,2011.8,2011.5,1.4029]
[1743002861733,0.00744343,2011.8,2011.6,3.2078]
[1743002862040,0.00744343,2011.8,2011.7,4.8833]
[1743002863033,3.897,2012.4,2011.7,4.8833]
[1743002863240,1.3738,2012.3,2011.9,3.2078]
[1743002863439,1.3738,2012.3,2012.0,5.551]
[1743002865640,1.3738,2012.3,2012.1,3.514]
[1743002866242,1.3738,2012.3,2012.2,1.2989]
[1743002866642,0.00744343,2012.4,2012.2,2.0054]
[1743002867142,0.00744343,2012.4,2012.2,5.2132]
[1743002867442,0.00744343,2012.4,2012.2,2.0054]
[1743002867840,0.00744343,2012.4,2012.2,5.2132]
[1743002868844,0.00744343,2012.4,2012.2,5.58336831]
[1743002870930,0.00744343,2012.4,2012.2,2.37556831]
[1743002871135,0.00744343,2012.4,2012.2,5.58336831]
[1743002873344,0.00744343,2012.4,2012.3,3.512]
[1743002873740,3.21524343,2012.4,2012.3,3.512]
[1743002874043,3.21524343,2012.4,2012.2,2.37556831]
[1743002874237,1.3718,2012.3,2012.2,2.37556831]
[1743002874540,1.3718,2012.3,2012.2,1.66906831]
[1743002874744,2.0841,2012.3,2012.2,1.66906831]
[1743002875136,2.0841,2012.3,2012.2,1.2989]
[1743002875448,2.0841,2012.3,2012.0,4.1787]
[1743002875642,2.7535,2012.3,2012.0,5.5342]
[1743002876147,2.7535,2012.3,2012.0,2.0232]
[1743002876441,2.7535,2012.3,2011.9,50.77164343]
[1743002876442,2.7535,2012.3,2011.9,53.63044343]
[1743002876848,2.7535,2012.3,2011.9,50.11944343]
[1743002877436,3.2078,2012.1,2011.9,50.11944343]
[1743002877637,1.3351,2012.0,2011.9,50.11944343]
[1743002877839,1.3351,2012.0,2011.9,0.00744343]
[1743002879739,1.3351,2012.0,2011.9,3.51844343]
[1743002879945,1.3351,2012.0,2011.9,6.72624343]
[1743002880345,1.3351,2012.0,2011.9,3.51844343]
[1743002881041,1.3351,2012.0,2011.9,0.00744343]
[1743002882044,3.8351,2012.0,2011.4,1.3333]
[1743002882243,3.2078,2011.8,2011.4,1.322]
[1743002882444,2.0297,2011.7,2011.4,1.322]
[1743002882737,2.0297,2011.7,2011.4,2.6832]
[1743002883349,2.0297,2011.7,2011.3,40.80744343]
[1743002883550,2.0297,2011.7,2011.3,45.64044343]
[1743002884052,2.0297,2011.7,2011.4,1.322]
[1743002889053,1.2935,2011.6,2011.4,1.322]
[1743002889650,0.6934,2011.5,2011.4,1.322]
[1743002890665,0.6934,2011.5,2011.3,0.00744343]
[1743002890846,1.2935,2011.4,2011.3,0.00744343]
[1743002891251,1.2935,2011.4,2011.3,1.36534343]
[1743002893055,0.6606,2011.7,2011.3,1.36534343]
[1743002893350,0.6875,2011.8,2011.4,3.8813]
[1743002893557,0.6875,2011.8,2011.5,5.5393]
[1743002893757,0.6875,2011.8,2011.6,1.3579]
[1743002894369,1.3748,2011.7,2011.6,1.3579]
[1743002896760,0.6918,2012.3,2011.6,1.3579]
[1743002897062,1.3748,2012.0,2011.6,1.3579]
[1743002897760,1.3748,2012.0,2011.8,3.2078]
[1743002897959,1.3748,2012.0,2011.9,1.3572]
[1743002898263,0.6918,2012.3,2011.9,2.0704]
[1743002898465,1.4113,2012.1,2011.9,2.0704]
[1743002898763,1.4113,2012.1,2012.0,1.3572]
[1743002900058,4.6191,2012.1,2012.0,1.3572]
[1743002900266,7.1191,2012.1,2011.5,0.6704]
[1743002900463,3.2078,2011.8,2011.5,0.6704]
[1743002900762,2.6668,2011.7,2011.3,0.00744343]
[1743002901070,1.3227,2011.6,2011.3,3.21524343]
[1743002901262,1.3227,2011.6,2011.4,1.3052]
[1743002903668,6.7178,2012.0,2011.5,1.3972]
[1743002903873,1.413,2011.9,2011.6,1.3732]
[1743002906461,2.0671,2011.9,2011.6,1.3732]
[1743002906664,0.6693,2011.8,2011.6,1.3732]
[1743002906966,2.1007,2011.8,2011.6,1.3732]
[1743002907473,1.4314,2011.7,2011.6,1.3732]
[1743002907766,0.6541,2011.9,2011.6,1.3732]
[1743002907973,2.0855,2011.9,2011.6,4.581]
[1743002908270,1.4314,2011.9,2011.6,4.581]
[1743002908472,1.4314,2011.9,2011.7,1.3696]
[1743002910263,4.6392,2011.9,2011.7,1.3696]
[1743002910460,4.6392,2011.9,2011.5,1.3972]
[1743002910672,1.3084,2011.8,2011.6,1.3352]
[1743002911271,1.9589,2011.8,2011.6,1.3352]
[1743002911663,1.3084,2011.7,2011.6,1.3352]
[1743002912370,1.3084,2011.7,2011.5,4.9062]
[1743002912573,1.9984,2011.7,2011.5,4.9062]
[1743002913065,0.69,2011.7,2011.6,1.3832]
[1743002914969,0.6505,2011.8,2011.6,1.3832]
[1743002916573,3.2078,2011.9,2011.6,1.3832]
[1743002921371,0.6888,2012.2,2011.6,4.591]
[1743002921768,0.6888,2012.2,2011.7,1.3713]
[1743002922070,0.6888,2012.2,2011.8,3.508]
[1743002922271,3.8946,2012.3,2011.9,4.5791]
[1743002922473,3.8946,2012.3,2012.0,1.3713]
[1743002922669,3.2078,2012.3,2012.0,1.3713]
[1743002922871,0.00744343,2012.4,2012.1,3.508]
[1743002923072,0.00744343,2012.4,2012.2,1.3713]
[1743002923271,0.00744343,2012.4,2012.3,0.6834]
[1743002923472,0.00744343,2012.4,2012.3,1.3887]
[1743002923868,0.00744343,2012.4,2012.2,1.3713]
[1743002928284,3.2078,2012.3,2012.1,3.508]
[1743002928490,3.8863,2012.3,2012.1,4.873]
[1743002928681,3.8863,2012.3,2012.2,1.365]
[1743002930274,3.2078,2012.3,2012.2,1.365]
[1743002930474,0.00744343,2012.4,2012.2,1.365]
[1743002931489,0.00744343,2012.4,2012.2,4.5728]
[1743002931787,0.00744343,2012.4,2012.3,1.321]
[1743002932087,3.2078,2013.0,2012.3,1.321]
[1743002932289,3.2078,2013.0,2012.4,4.197]
[1743002932477,3.2078,2013.0,2012.5,4.5288]
[1743002932683,3.2078,2013.3,2012.6,1.321]
[1743002932882,3.2078,2013.5,2013.0,3.2078]
[1743002933078,3.2078,2013.5,2013.1,5.4887]
[1743002933387,3.2078,2013.5,2013.4,3.2078]
[1743002933388,0.00744343,2013.5,2013.4,3.2078]
[1743002933584,0.00744343,2013.5,2013.4,6.7148]
[1743002933780,0.00744343,2013.5,2013.4,9.2148]
[1743002933983,23.33480884,2014.0,2013.4,9.2148]
[1743002934178,23.33480884,2014.0,2013.7,3.2078]
[1743002934378,23.33480884,2014.0,2013.8,4.5219]
[1743002934681,23.33480884,2014.0,2013.9,4.8201]
[1743002935583,1.30614343,2014.2,2013.9,1.3141]
[1743002935783,3.2078,2014.0,2013.7,3.506]
[1743002935978,1.2987,2013.9,2013.3,4.8201]
[1743002936178,3.2078,2013.7,2013.3,4.8201]
[1743002936377,1.2987,2013.6,2013.3,1.3141]
[1743002936580,3.2078,2013.4,2013.1,5.488]
[1743002936785,1.3754,2013.3,2013.1,3.506]
[1743002937183,1.3754,2013.3,2013.0,0.00744343]
[1743002937689,1.3754,2013.3,2013.0,1.34374343]
[1743002937890,1.3754,2013.3,2013.0,0.00744343]
[1743002938285,1.3754,2013.3,2013.0,1.34374343]
[1743002938887,3.2078,2013.1,2013.0,1.34374343]
[1743002939992,3.2078,2013.1,2013.0,0.00744343]
[1743002941684,5.7078,2013.1,2013.0,0.00744343]
[1743002941884,5.7078,2013.1,2012.5,3.505]
[1743002942086,3.2078,2012.8,2012.4,1.9766]
[1743002942285,1.4164,2012.7,2012.5,3.504]
[1743002944192,1.4164,2012.7,2012.6,1.3388]
[1743002947796,1.4164,2012.7,2012.4,0.69074343]
[1743002948097,0.6996,2012.6,2012.4,0.00744343]
[1743002948297,1.3506,2012.5,2012.4,0.00744343]
[1743002948698,1.3506,2012.5,2012.4,1.34754343]
[1743002949505,3.21524343,2012.8,2012.4,1.34754343]
[1743002949690,1.3832,2012.7,2012.5,0.6669]
[1743002949994,1.3832,2012.7,2012.6,1.3788]
[1743002950790,3.21524343,2012.8,2012.6,1.3788]
[1743002951093,0.00744343,2012.8,2012.6,1.3788]
[1743002951297,0.00744343,2012.8,2012.6,4.8828]
[1743002951796,0.00744343,2012.8,2012.7,1.3788]
[1743002951998,0.00744343,2012.8,2012.7,2.0459]
[1743002953496,3.2078,2013.1,2012.7,5.2537]
[1743002954792,3.21524343,2013.1,2012.7,2.0459]
[1743002954993,1.3761,2013.0,2012.7,2.0459]
[1743002955399,3.21524343,2013.1,2012.7,2.0459]
[1743002955607,0.00744343,2013.1,2012.9,3.2078]
[1743002955897,3.2078,2014.0,2013.0,5.5185]
[1743002956099,3.2078,2014.0,2013.5,3.2078]
[1743002956295,3.2078,2014.0,2013.6,46.9651]
[1743002956494,3.2078,2014.0,2013.7,4.8564]
[1743002956700,1.3761,2013.9,2013.7,4.8564]
[1743002956999,3.21524343,2014.0,2013.7,4.8564]
[1743002957295,0.00744343,2014.0,2013.7,4.8564]
[1743002957700,0.00744343,2014.0,2013.9,3.2078]
[1743002957894,3.2078,2014.6,2013.9,3.2078]
[1743002958096,3.2078,2014.9,2014.0,54.9074]
[1743002958296,1.3315,2014.8,2014.3,3.2078]
[1743002958496,3.2078,2014.9,2014.4,4.8154]
[1743002958909,4.5393,2015.2,2014.4,5.5075]
[1743002959107,0.00496228,2014.9,2014.6,3.2078]
[1743002959397,0.00496228,2014.9,2014.7,1.3124]
[1743002959595,3.21276228,2014.9,2014.7,3.502]
[1743002959803,1.3315,2014.8,2014.7,3.502]
[1743002960194,1.3315,2014.8,2014.5,0.00744343]
[1743002960396,2.0407,2014.8,2014.5,3.50944343]
[1743002960795,3.2078,2014.6,2014.5,0.00744343]
[1743002968702,3.2078,2014.6,2014.5,1.42124343]
[1743002969702,1.3315,2014.8,2014.5,1.42124343]
[1743002969902,1.3315,2014.8,2014.5,2.07694343]
[1743002970207,0.00496228,2014.9,2014.5,2.74824343]
[1743002970398,1.37776228,2014.9,2014.5,2.74824343]
[1743002970598,1.37776228,2014.9,2014.6,40.8]
[1743002970799,1.37776228,2014.9,2014.7,4.8293]
[1743002974412,0.7001,2015.3,2014.7,4.8293]
[1743002974707,0.62157477,2887.7,2015.2,3.2078]
[1743002974708,3.2078,2016.3,2015.2,3.2078]
[1743002974910,3.2078,2016.0,2015.3,2.0064]
[1743002975103,3.2078,2015.7,2015.3,1.2977]
[1743002975410,3.2078,2015.4,2014.9,7.1138]
[1743002975612,3.2078,2015.4,2015.3,0.00744343]
[1743002976111,5.7078,2015.4,2014.6,3.915]
[1743002976308,3.2078,2015.4,2014.7,1.344]
[1743002977302,0.00744343,2015.3,2014.8,0.00744343]
[1743002978415,3.2078,2015.1,2014.8,0.00744343]
[1743002979314,5.7078,2015.1,2014.3,2.0262]
[1743002979505,3.2078,2014.8,2014.3,2.0262]
[1743002979814,0.6582,2014.7,2014.4,1.3315]
[1743002980008,2.0128,2014.7,2014.4,1.3315]
[1743002985216,2.0128,2014.7,2014.3,0.00744343]
[1743002985414,3.2078,2014.5,2014.3,0.00744343]
[1743002985609,1.3058,2014.4,2014.3,0.00744343]
[1743002986005,1.3058,2014.4,2014.3,0.65242827]
[1743002987514,0.6582,2014.7,2014.3,3.86022827]
[1743002987816,1.3058,2014.6,2014.4,1.3646]
[1743002988011,1.3058,2014.6,2014.5,0.64498484]
[1743002989220,1.3058,2014.6,2014.4,1.3646]
[1743002990722,1.3058,2014.6,2014.5,0.64533142]
[1743002990924,1.3058,2014.6,2014.4,1.3646]
[1743002991124,1.3058,2014.6,2014.5,0.64534271]
[1743002991522,4.5286,2014.8,2014.5,0.64534271]
[1743002991825,4.5286,2014.8,2014.4,1.3646]
[1743002993128,4.5286,2014.8,2014.3,0.00744343]
[1743002993626,3.812,2014.7,2014.3,0.00744343]
[1743002993829,3.812,2014.7,2014.3,1.33714343]
[1743002993830,3.2078,2014.5,2014.3,1.33714343]
[1743002994125,1.3208,2014.4,2014.3,1.33714343]
[1743002994325,0.6678,2014.6,2014.3,1.33714343]
[1743002994516,1.336,2014.5,2014.3,1.33714343]
[1743002996129,1.336,2014.5,2014.4,0.64537472]
[1743002999032,3.2078,2014.8,2014.4,0.64537472]
[1743002999228,5.2438,2015.1,2014.5,1.2978]
[1743002999438,9.0228,2015.1,2014.5,2.60727472]
[1743002999646,9.0228,2015.1,2014.6,0.6671]
[1743002999839,9.0228,2015.1,2014.7,1.2978]
[1743003000645,9.0228,2015.1,2014.5,0.6641]
[1743003000945,3.2078,2014.8,2014.5,1.4046]
[1743003001244,2.0598,2014.7,2014.3,0.00744343]
[1743003001448,1.3761,2014.7,2014.3,0.00744343]
[1743003001742,1.3761,2014.7,2014.3,3.21524343]
[1743003001945,1.3761,2014.7,2014.4,2.04975696]
[1743003002140,1.3761,2014.7,2014.5,0.64515696]
[1743003002336,1.3761,2014.7,2014.6,1.4046]
[1743003002742,3.2078,2014.8,2014.6,2.04975696]
[1743003003146,3.2078,2014.8,2014.7,1.4046]
[1743003004350,3.2078,2014.8,2014.5,0.6664]
[1743003004646,0.7096,2014.7,2014.4,1.409]
[1743003005641,0.7096,2014.7,2014.5,0.64617409]
[1743003005953,4.4526,2014.7,2014.4,1.409]
[1743003006339,5.113,2014.7,2014.4,1.409]
[1743003007036,3.2078,2014.5,2014.3,0.00744343]
[1743003012559,3.2078,2014.9,2014.4,3.2078]
[1743003012853,3.709,2015.1,2014.5,2.7333]
[1743003013251,3.709,2015.1,2014.6,0.64661466]
[1743003013557,3.709,2015.1,2014.7,1.4088]
[1743003014051,4.5284,2015.2,2014.8,0.64661466]
[1743003014245,4.5284,2015.2,2014.9,1.4088]
[1743003014450,3.8527,2015.2,2014.9,2.0699]
[1743003015053,3.8527,2015.2,2014.9,1.4088]
[1743003015451,4.539,2015.2,2014.9,1.4088]
[1743003016850,3.2078,2015.2,2014.9,1.4088]
[1743003017057,3.2078,2015.2,2015.0,2.02855349]
[1743003017242,3.2078,2015.2,2015.1,1.3115]
[1743003017443,0.00744343,2015.3,2015.1,1.3115]
[1743003021661,3.21524343,2015.3,2015.1,1.3115]
[1743003021857,1.3624,2015.2,2015.1,1.3115]
[1743003022057,1.3624,2015.2,2014.6,3.2078]
[1743003022246,0.7083,2015.1,2014.9,1.3257]
[1743003022555,1.3624,2015.0,2014.9,1.3257]
[1743003024651,3.21524343,2015.3,2014.9,1.3257]
[1743003024856,4.57764343,2015.3,2015.0,0.6958]
[1743003025056,4.57764343,2015.3,2015.1,1.3723]
[1743003025264,4.57764343,2015.3,2015.1,2.0551]
[1743003025761,4.57764343,2015.3,2015.2,1.3723]
[1743003026263,3.21524343,2015.3,2015.2,1.3723]
[1743003027651,0.00744343,2015.3,2015.2,1.3723]
[1743003028061,0.00744343,2015.3,2015.2,2.01544893]
[1743003029153,0.00744343,2015.3,2015.2,1.3723]